[Event "ONJK FGH 1"]
[Site "Enschede, Netherlands"]
[Date "2022.08.08"]
[Round "1.1"]
[White "Rudolph, Daria"]
[Black "De Wit, Jim"]
[Result "0-1"]
[TimeControl "25min + 10sec/move"]
[WhiteElo "370"]
[BlackElo "889"]

1. e4 {[%clk 00:25:17]} {[%emt 00:00:02]} c5 {[%clk 00:25:18]} {[%emt
00:00:03]} 2. Nf3 {[%clk 00:25:25]} {[%emt 00:00:02]} d6 {[%clk 00:25:26]}
{[%emt 00:00:03]} 3. d4 {[%clk 00:25:33]} cxd4 {[%clk 00:25:32]} {[%emt
00:00:02]} 4. c3 {[%clk 00:25:42]} {[%emt 00:00:04]} Nf6 {[%clk 00:25:31]}
{[%emt 00:00:11]} 5. cxd4 {[%clk 00:25:42]} {[%emt 00:00:09]} Nxe4 {[%clk
00:25:35]} {[%emt 00:00:05]} 6. Bd3 {[%clk 00:25:45]} {[%emt 00:00:08]} Nf6
{[%emt 00:00:02]} 7. Nc3 {[%emt 00:00:07]} Nc6 {[%clk 00:25:29]} {[%emt
00:00:07]} 8. Bc4 {[%clk 00:25:47]} {[%emt 00:00:08]} Bd7 {[%clk 00:25:34]}
{[%emt 00:00:04]} 9. Bf4 {[%clk 00:25:44]} {[%emt 00:00:14]} Na5 {[%emt
00:00:33]} 10. b3 {[%clk 00:25:36]} Nxc4 {[%clk 00:25:21]} {[%emt 00:00:17]} 11.
bxc4 {[%clk 00:25:44]} {[%emt 00:00:02]} e6 {[%clk 00:25:22]} {[%emt 00:00:06]}
12. Bg5 {[%clk 00:25:41]} {[%emt 00:00:16]} Be7 {[%clk 00:25:23]} {[%emt
00:00:08]} 13. Bxf6 {[%clk 00:25:45]} {[%emt 00:00:05]} Bxf6 {[%clk 00:25:30]}
{[%emt 00:00:04]} 14. d5 {[%clk 00:25:46]} {[%emt 00:00:10]} Bxc3+ {[%clk
00:25:36]} {[%emt 00:00:03]} 15. Nd2 {[%clk 00:25:47]} {[%emt 00:00:10]} Bxa1
{[%clk 00:25:44]} {[%emt 00:00:03]} 16. Qxa1 {[%clk 00:25:56]} {[%emt
00:00:01]} e5 {[%clk 00:25:33]} {[%emt 00:00:21]} 17. O-O {[%clk 00:26:00]}
{[%emt 00:00:06]} O-O {[%clk 00:25:37]} {[%emt 00:00:07]} 18. h3 {[%clk
00:26:05]} {[%emt 00:00:05]} Rb8 {[%clk 00:25:35]} {[%emt 00:00:12]} 19. Ne4
{[%clk 00:25:22]} {[%emt 00:00:53]} Qe7 {[%clk 00:25:32]} {[%emt 00:00:08]} 20.
c5 {[%clk 00:25:18]} {[%emt 00:00:19]} dxc5 {[%clk 00:25:25]} {[%emt 00:00:15]}
21. Qc3 {[%clk 00:25:07]} {[%emt 00:00:21]} b6 {[%clk 00:25:24]} {[%emt
00:00:12]} 22. d6 {[%clk 00:25:11]} {[%emt 00:00:06]} Qe6 {[%clk 00:25:17]}
{[%emt 00:00:11]} 23. Rd1 {[%clk 00:24:53]} {[%emt 00:00:34]} Qxa2 {[%clk
00:25:02]} {[%emt 00:00:23]} 24. Rd2 {[%clk 00:24:29]} {[%emt 00:00:37]} Qb1+
{[%emt 00:00:10]} 25. Kh2 {[%emt 00:00:13]} Qxe4 {[%clk 00:24:44]} {[%emt
00:00:04]} 26. f3 {[%clk 00:24:25]} {[%emt 00:00:14]} Qb4 {[%clk 00:24:48]}
{[%emt 00:00:06]} 27. Qc2 {[%clk 00:24:15]} {[%emt 00:00:20]} Ba4 {[%emt
00:00:50]} 28. Qc1 {[%clk 00:23:57]} {[%emt 00:00:05]} Qf4+ {[%clk 00:24:30]}
{[%emt 00:00:08]} 29. Kh1 {[%clk 00:24:00]} {[%emt 00:00:10]} Rfd8 {[%clk
00:24:36]} {[%emt 00:00:03]} 30. Qc3 {[%clk 00:23:17]} {[%emt 00:00:54]} Bb3
{[%clk 00:24:36]} {[%emt 00:00:09]} 31. Rb2 {[%clk 00:22:49]} {[%emt 00:00:40]}
Bd5 {[%clk 00:24:21]} {[%emt 00:00:24]} 32. Rd2 {[%clk 00:22:40]} {[%emt
00:00:18]} Bc4 {[%clk 00:23:52]} {[%emt 00:00:35]} 33. d7 {[%clk 00:22:29]}
{[%emt 00:00:27]} Qh6 {[%clk 00:23:38]} {[%emt 00:00:22]} 34. Rd1 {[%clk
00:21:37]} {[%emt 00:01:03]} Be2 {[%clk 00:23:23]} {[%emt 00:00:20]} 35. Rd2
{[%clk 00:21:38]} {[%emt 00:00:14]} Bb5 {[%clk 00:23:30]} {[%emt 00:00:03]} 36.
Rd1 {[%clk 00:21:19]} {[%emt 00:00:29]} Bxd7 {[%clk 00:23:17]} {[%emt
00:00:23]} 37. Qxe5 {[%clk 00:21:07]} {[%emt 00:00:21]} Bxh3 {[%clk 00:23:11]}
{[%emt 00:00:17]} 38. Rxd8+ {[%clk 00:21:02]} {[%emt 00:00:14]} Rxd8 {[%clk
00:23:13]} {[%emt 00:00:07]} 39. gxh3 {[%clk 00:21:08]} {[%emt 00:00:05]} Qg6
{[%clk 00:23:07]} {[%emt 00:00:16]} 40. Qe7 {[%clk 00:20:50]} {[%emt 00:00:28]}
Rd1+ {[%clk 00:23:16]} {[%emt 00:00:02]} 41. Kh2 {[%clk 00:20:55]} {[%emt
00:00:04]} Qg1# {[%clk 00:23:22]} {[%emt 00:00:04]} 0-1

[Event "ONJK FGH 1"]
[Site "Enschede, Netherlands"]
[Date "2022.08.08"]
[Round "1.2"]
[White "Okita, Ryoga"]
[Black "Gang, Luke Wan Cheng"]
[Result "1-0"]
[TimeControl "25min + 10sec/move"]
[WhiteElo "829"]
[BlackElo "356"]

1. e4 {[%clk 00:25:18]} {[%emt 00:00:01]} e5 {[%clk 00:25:17]} {[%emt
00:00:03]} 2. Nf3 {[%clk 00:25:18]} {[%emt 00:00:11]} Nc6 {[%clk 00:24:42]}
{[%emt 00:00:37]} 3. Bc4 {[%clk 00:25:13]} {[%emt 00:00:23]} Nh6 {[%clk
00:24:14]} {[%emt 00:00:37]} 4. d3 {[%clk 00:24:55]} {[%emt 00:00:29]} Bb4+
{[%clk 00:23:28]} {[%emt 00:00:55]} 5. c3 {[%clk 00:24:48]} {[%emt 00:00:18]}
Bc5 {[%clk 00:22:53]} {[%emt 00:02:24]} 6. Ng5 {[%clk 00:24:36]} {[%emt
00:00:22]} f6 {[%clk 00:22:31]} {[%emt 00:00:32]} 7. Nf3 {[%clk 00:24:35]}
{[%emt 00:00:12]} f5 {[%emt 00:00:39]} 8. O-O {[%clk 00:23:54]} {[%emt
00:00:33]} fxe4 {[%clk 00:21:41]} {[%emt 00:00:48]} 9. dxe4 {[%clk 00:23:50]}
{[%emt 00:00:14]} Na5 {[%clk 00:21:23]} {[%emt 00:00:28]} 10. Nxe5 {[%clk
00:23:44]} {[%emt 00:00:15]} Bd6 {[%clk 00:20:48]} {[%emt 00:00:51]} 11. b4
{[%clk 00:23:22]} {[%emt 00:00:34]} Bxe5 {[%clk 00:20:21]} {[%emt 00:00:38]} 12.
bxa5 {[%clk 00:23:16]} {[%emt 00:00:16]} Qh4 {[%clk 00:19:42]} {[%emt
00:00:48]} 13. g3 {[%clk 00:23:03]} {[%emt 00:00:23]} Qh3 {[%clk 00:18:53]}
{[%emt 00:00:54]} 14. Qf3 {[%clk 00:22:41]} {[%emt 00:00:36]} Ng4 {[%clk
00:18:19]} {[%emt 00:00:45]} 15. Qg2 {[%emt 00:01:58]} Qh6 {[%clk 00:17:16]} 16.
Bxh6 {[%clk 00:22:02]} {[%emt 00:00:13]} Nxh6 {[%clk 00:17:17]} {[%emt
00:00:10]} 17. f4 {[%clk 00:21:55]} {[%emt 00:00:17]} Bd6 {[%clk 00:16:30]}
{[%emt 00:00:52]} 18. e5 {[%clk 00:21:43]} {[%emt 00:00:27]} Ba3 {[%clk
00:16:04]} {[%emt 00:00:36]} 19. Nxa3 {[%clk 00:21:39]} {[%emt 00:00:13]} c6
{[%clk 00:15:38]} {[%emt 00:00:34]} 20. a6 {[%clk 00:21:37]} {[%emt 00:00:16]}
bxa6 {[%clk 00:15:27]} {[%emt 00:00:19]} 21. Nb5 {[%clk 00:21:38]} {[%emt
00:00:09]} axb5 {[%emt 00:00:28]} 22. Bxb5 {[%emt 00:00:10]} cxb5 {[%clk
00:14:51]} {[%emt 00:00:07]} 23. Qxa8 {[%clk 00:21:44]} {[%emt 00:00:06]} O-O
{[%clk 00:14:25]} {[%emt 00:00:35]} 24. Qd5+ {[%clk 00:21:48]} {[%emt
00:00:06]} Nf7 {[%clk 00:14:06]} {[%emt 00:00:26]} 25. Qxb5 {[%emt 00:00:36]}
d6 {[%clk 00:13:18]} {[%emt 00:00:27]} 26. exd6 {[%clk 00:22:04]} {[%emt
00:01:38]} Nxd6 {[%clk 00:13:43]} {[%emt 00:00:10]} 27. Qd5+ {[%clk 00:22:10]}
{[%emt 00:00:05]} Nf7 {[%clk 00:13:27]} {[%emt 00:00:26]} 28. Rfe1 {[%clk
00:22:01]} {[%emt 00:00:18]} Kh8 {[%clk 00:12:47]} {[%emt 00:00:50]} 29. Qe4
{[%clk 00:21:56]} {[%emt 00:00:16]} Nd6 {[%clk 00:12:08]} {[%emt 00:00:49]} 30.
Qe5 {[%clk 00:21:45]} {[%emt 00:00:21]} Re8 {[%clk 00:11:34]} {[%emt 00:00:43]}
31. Qxe8+ {[%clk 00:21:44]} {[%emt 00:00:11]} Nxe8 {[%clk 00:11:30]} {[%emt
00:00:14]} 32. Rxe8# {[%clk 00:21:42]} {[%emt 00:00:03]} 1-0

[Event "ONJK FGH 1"]
[Site "Enschede, Netherlands"]
[Date "2022.08.08"]
[Round "1.3"]
[White "Hendriks, Liam"]
[Black "Georgopoulos-Karbouniaris"]
[Result "0-1"]
[TimeControl "25min + 10sec/move"]
[WhiteElo "333"]
[BlackElo "787"]

1. e4 {[%clk 00:25:19]} {[%emt 00:00:01]} e5 {[%clk 00:25:19]} {[%emt
00:00:01]} 2. Bc4 {[%clk 00:25:19]} {[%emt 00:00:03]} Nf6 {[%clk 00:25:27]}
{[%emt 00:00:09]} 3. Bd3 {[%clk 00:25:19]} {[%emt 00:00:08]} Bc5 {[%clk
00:25:35]} {[%emt 00:00:04]} 4. Nf3 {[%clk 00:25:24]} {[%emt 00:00:02]} Nc6
{[%clk 00:25:43]} {[%emt 00:00:05]} 5. O-O {[%clk 00:25:30]} {[%emt 00:00:02]}
d6 {[%clk 00:25:51]} {[%emt 00:00:03]} 6. Nc3 {[%clk 00:25:36]} {[%emt
00:00:05]} Bg4 {[%clk 00:25:59]} {[%emt 00:00:02]} 7. Na4 {[%clk 00:25:39]}
{[%emt 00:00:07]} O-O {[%clk 00:25:57]} {[%emt 00:00:12]} 8. Nxc5 {[%clk
00:25:47]} {[%emt 00:00:02]} dxc5 {[%emt 00:00:06]} 9. Nxe5 {[%clk 00:25:43]}
{[%emt 00:00:07]} Bxd1 {[%clk 00:26:10]} {[%emt 00:00:07]} 10. Nxc6 {[%clk
00:25:48]} {[%emt 00:00:03]} bxc6 {[%emt 00:00:10]} 11. e5 {[%clk 00:25:55]}
Ng4 {[%clk 00:26:07]} {[%emt 00:00:18]} 12. Rxd1 {[%clk 00:26:00]} {[%emt
00:00:03]} Qh4 {[%clk 00:25:58]} {[%emt 00:00:19]} 13. g3 {[%clk 00:26:05]}
{[%emt 00:00:05]} Qxh2+ {[%clk 00:26:04]} {[%emt 00:00:05]} 14. Kf1 {[%clk
00:26:13]} Qxf2# {[%clk 00:26:11]} {[%emt 00:00:05]} 0-1

[Event "ONJK FGH 1"]
[Site "Enschede, Netherlands"]
[Date "2022.08.08"]
[Round "2.1"]
[White "De Wit, Jim"]
[Black "Decraene, Eden"]
[Result "1-0"]
[TimeControl "25min + 10sec/move"]
[WhiteElo "889"]
[BlackElo "700"]

1. d4 {[%clk 00:25:17]} {[%emt 00:00:02]} d5 {[%clk 00:25:20]} {[%emt
00:00:02]} 2. c4 {[%clk 00:25:24]} {[%emt 00:00:03]} dxc4 {[%clk 00:25:25]}
{[%emt 00:00:04]} 3. e4 {[%clk 00:25:28]} {[%emt 00:00:05]} e6 {[%clk
00:25:13]} {[%emt 00:00:22]} 4. Nc3 {[%clk 00:25:35]} {[%emt 00:00:04]} Nc6
{[%clk 00:25:19]} {[%emt 00:00:04]} 5. Bxc4 {[%clk 00:25:37]} {[%emt 00:00:07]}
Nxd4 {[%clk 00:25:21]} {[%emt 00:00:09]} 6. Be3 {[%clk 00:25:28]} {[%emt
00:00:17]} e5 {[%clk 00:25:24]} {[%emt 00:00:09]} 7. Bxd4 {[%clk 00:25:09]}
{[%emt 00:00:28]} exd4 {[%clk 00:25:33]} 8. Nce2 {[%emt 00:00:06]} Bg4 {[%emt
00:00:10]} 9. f3 {[%emt 00:00:44]} Bb4+ {[%clk 00:25:06]} {[%emt 00:00:17]} 10.
Kf1 {[%emt 00:00:07]} Be6 {[%emt 00:00:09]} 11. Qa4+ {[%clk 00:24:19]} {[%emt
00:00:15]} c6 {[%clk 00:24:44]} {[%emt 00:00:34]} 12. Qxb4 {[%emt 00:00:06]}
Bxc4 {[%emt 00:00:08]} 13. Qxc4 {[%clk 00:24:10]} {[%emt 00:00:03]} b5 {[%clk
00:24:36]} {[%emt 00:00:20]} 14. Qxc6+ {[%clk 00:23:48]} {[%emt 00:00:11]} Qd7
{[%clk 00:24:20]} {[%emt 00:00:46]} 15. Qxa8+ {[%clk 00:23:54]} {[%emt
00:00:04]} Ke7 {[%clk 00:24:29]} 16. Nf4 {[%clk 00:23:58]} {[%emt 00:00:05]} b4
{[%clk 00:24:23]} {[%emt 00:00:17]} 17. Qd5 {[%clk 00:23:59]} {[%emt 00:00:07]}
Nf6 {[%clk 00:23:51]} {[%emt 00:00:44]} 18. Qxd7+ {[%clk 00:24:02]} {[%emt
00:00:06]} Nxd7 {[%clk 00:23:56]} {[%emt 00:00:05]} 19. Nd5+ {[%clk 00:24:10]}
{[%emt 00:00:02]} Ke6 {[%clk 00:24:04]} {[%emt 00:00:03]} 20. Nh3 {[%emt
00:00:17]} Rc8 21. Nhf4+ {[%clk 00:23:58]} {[%emt 00:00:04]} Kd6 {[%clk
00:24:06]} {[%emt 00:00:07]} 22. Nxb4 {[%clk 00:23:55]} {[%emt 00:00:13]} Rc4
{[%clk 00:24:08]} {[%emt 00:00:10]} 1-0

[Event "ONJK FGH 1"]
[Site "Enschede, Netherlands"]
[Date "2022.08.08"]
[Round "2.2"]
[White "Zhang, Melody"]
[Black "Okita, Ryoga"]
[Result "0-1"]
[TimeControl "25min + 10sec/move"]
[WhiteElo "667"]
[BlackElo "829"]

1. e4 {[%clk 00:25:19]} e5 {[%clk 00:25:14]} {[%emt 00:00:06]} 2. Nf3 {[%clk
00:25:28]} {[%emt 00:00:01]} Nc6 {[%clk 00:25:15]} {[%emt 00:00:09]} 3. Bc4
{[%clk 00:25:36]} {[%emt 00:00:01]} Bc5 {[%clk 00:25:18]} {[%emt 00:00:08]} 4.
O-O {[%clk 00:25:44]} {[%emt 00:00:02]} d6 {[%clk 00:25:20]} {[%emt 00:00:09]}
5. h3 {[%clk 00:25:52]} {[%emt 00:00:02]} Nf6 {[%clk 00:25:22]} {[%emt
00:00:08]} 6. d3 {[%clk 00:26:00]} {[%emt 00:00:02]} Be6 {[%clk 00:25:01]}
{[%emt 00:00:31]} 7. Bb3 {[%clk 00:26:08]} {[%emt 00:00:02]} O-O {[%clk
00:24:22]} {[%emt 00:00:49]} 8. Be3 {[%clk 00:26:15]} {[%emt 00:00:03]} Bb6
{[%clk 00:24:25]} {[%emt 00:00:07]} 9. Nc3 {[%clk 00:26:20]} {[%emt 00:00:05]}
h6 {[%clk 00:24:17]} {[%emt 00:00:18]} 10. Nd5 {[%clk 00:26:04]} {[%emt
00:00:26]} Bxd5 {[%clk 00:23:57]} {[%emt 00:00:29]} 11. exd5 {[%clk 00:25:52]}
{[%emt 00:00:21]} Nd4 {[%clk 00:24:03]} {[%emt 00:00:04]} 12. Bxd4 {[%clk
00:25:44]} {[%emt 00:00:19]} exd4 {[%clk 00:23:57]} {[%emt 00:00:16]} 13. c3
{[%clk 00:25:41]} {[%emt 00:00:13]} Re8 {[%clk 00:23:50]} {[%emt 00:00:16]} 14.
cxd4 {[%clk 00:25:29]} {[%emt 00:00:23]} c5 {[%clk 00:23:03]} {[%emt 00:00:56]}
15. dxc5 {[%clk 00:25:30]} {[%emt 00:00:11]} Bxc5 {[%clk 00:23:04]} {[%emt
00:00:09]} 16. Re1 {[%clk 00:25:02]} {[%emt 00:00:37]} Qc7 {[%clk 00:22:59]}
{[%emt 00:00:16]} 17. d4 {[%clk 00:24:54]} {[%emt 00:00:18]} Bb4 {[%clk
00:22:55]} {[%emt 00:00:14]} 18. Re2 {[%clk 00:24:56]} {[%emt 00:00:08]} Rxe2
{[%clk 00:22:51]} {[%emt 00:00:15]} 19. Qxe2 {[%clk 00:25:00]} {[%emt
00:00:05]} Re8 {[%clk 00:22:54]} {[%emt 00:00:08]} 20. Qd1 {[%emt 00:00:11]}
Nh7 {[%emt 00:00:26]} 21. a3 {[%clk 00:24:17]} {[%emt 00:00:16]} Ba5 {[%clk
00:22:50]} {[%emt 00:00:13]} 22. Ba4 {[%clk 00:24:20]} {[%emt 00:00:07]} Re7
{[%clk 00:22:52]} {[%emt 00:00:09]} 23. b4 {[%clk 00:24:18]} {[%emt 00:00:11]}
Bb6 {[%clk 00:22:51]} {[%emt 00:00:12]} 24. Rc1 {[%clk 00:24:22]} {[%emt
00:00:06]} Qd8 {[%clk 00:22:48]} {[%emt 00:00:11]} 25. Qc2 {[%clk 00:24:10]}
{[%emt 00:00:23]} Rc7 {[%clk 00:22:24]} {[%emt 00:00:34]} 26. Qb2 {[%clk
00:23:58]} {[%emt 00:00:20]} Re7 {[%clk 00:21:50]} {[%emt 00:00:46]} 27. Qc3
{[%clk 00:23:37]} {[%emt 00:00:29]} Rc7 {[%clk 00:21:41]} {[%emt 00:00:21]} 28.
Qb2 {[%clk 00:23:25]} {[%emt 00:00:22]} Ng5 {[%clk 00:21:12]} {[%emt 00:00:39]}
29. Nxg5 {[%clk 00:23:21]} {[%emt 00:00:14]} Bxd4 {[%clk 00:20:58]} {[%emt
00:00:24]} 30. Qd2 {[%clk 00:23:08]} {[%emt 00:00:19]} Rxc1+ {[%clk 00:20:41]}
{[%emt 00:00:31]} 31. Qxc1 {[%clk 00:23:12]} {[%emt 00:00:06]} Qxg5 {[%clk
00:20:38]} {[%emt 00:00:14]} 32. Bc2 {[%clk 00:23:08]} {[%emt 00:00:13]} Qxc1+
{[%clk 00:20:24]} {[%emt 00:00:22]} 33. Kh2 {[%clk 00:23:17]} {[%emt 00:00:02]}
Qxc2 {[%clk 00:20:23]} {[%emt 00:00:11]} 34. f3 {[%clk 00:23:21]} {[%emt
00:00:06]} Qb3 {[%clk 00:20:00]} {[%emt 00:00:34]} 35. b5 {[%clk 00:22:50]}
{[%emt 00:00:40]} Qxb5 {[%clk 00:19:58]} {[%emt 00:00:12]} 36. Kh1 {[%clk
00:22:47]} {[%emt 00:00:13]} Be5 {[%clk 00:20:00]} {[%emt 00:00:09]} 37. a4
{[%clk 00:22:43]} {[%emt 00:00:13]} Qf1# {[%emt 00:01:25]} 0-1